[Event "WSTCC-65 2024"]
[Site "Krakow"]
[Date "2024.07.05"]
[Round "4.13"]
[White "Maier, Christian"]
[Black "Kasperek, Wieslaw"]
[Result "1-0"]
[ECO "A46"]
[WhiteElo "2252"]
[BlackElo "2009"]
[Annotator "TA"]
[PlyCount "85"]
[EventDate "2024.07.01"]
[EventType "team-tourn"]
[EventCountry "POL"]
[SourceTitle "playchess.com"]
[Source "ChessBase"]
[SourceQuality "1"]
[TimeControl "40/5400+30:1800+30"]

{[%evp 9,85,0,0,-8,0,0,44,33,53,54,71,25,66,64,59,45,54,24,23,23,36,43,43,0,40,44,65,77,68,66,64,45,60,49,69,37,31,43,45,30,71,50,128,89,168,172,177,189,202,183,186,185,214,211,210,170,197,206,202,155,220,227,290,283,292,281,267,252,501,431,524,529,514,514,1015,1022,4994,291]} 1. d4 {[%emt 0:02:52]} Nf6 {[%emt 0:00:14]} 2. Nf3 {[%emt 0:01:29]} e6 {[%emt 0:00:31]} 3. Bg5 {[%emt 0:03:16]} d5 {[%emt 0:00:27]} 4. Nbd2 {[%emt 0:00:43]} Be7 {[%emt 0:00:18]} 5. e3 {[%emt 0:00:35]} b6 {[%emt 0:00:16]} 6. c4 {[%emt 0:00:56]} Bb7 {[%emt 0:00:28]} 7. cxd5 {[%emt 0:00:58]} Bxd5 {[%emt 0:00:28]} 8. Bb5+ {[%emt 0:01:48] White is slightly better.} Nfd7 {[%emt 0:17:19]} 9. Bxe7 {[%emt 0:03:02]} Qxe7 {[%emt 0:00:15]} 10. Qc2 {[%emt 0:01:52]} ({Better is} 10. Rc1 $16 {Black must now prevent e4.} c5 11. dxc5 bxc5 12. e4) 10... c6 {[%emt 0:01:49]} 11. Bd3 {[%emt 0:00:20] [#] And now e4 would win.} c5 {[%emt 0:00:33]} 12. O-O {[%emt 0:03:15]} h6 $1 {[%emt 0:00:10]} 13. a3 {[%emt 0:07:57][%cal Ob2b4]} O-O {[%emt 0:00:23]} 14. Rac1 {[%emt 0:00:35]} a5 {[%emt 0:05:03]} 15. Rfd1 {[%emt 0:08:15]} Ra7 {[%emt 0:00:58]} 16. Bh7+ {[%emt 0:04:28]} Kh8 {[%emt 0:00:07]} 17. Be4 {[%emt 0:00:06]} cxd4 {[%emt 0:12:05]} 18. Nxd4 {[%emt 0:00:20]} Nf6 {[%emt 0:00:46]} 19. Bxd5 {[%emt 0:02:37]} Nxd5 {[%emt 0:00:14]} 20. Nb5 {[%emt 0:02:20] Prevents Rc7.} Rd7 {[%emt 0:00:29]} 21. Nf3 {[%emt 0:01:19]} Qf6 {[%emt 0:05:43]} 22. e4 {[%emt 0:05:19]} (22. Rd2 $5) 22... Nf4 {[%emt 0:02:20]} 23. g3 $36 {[%emt 0:03:22][%mdl 2048] White is pushing.} Ng6 {[%emt 0:01:38]} 24. Qc3 {[%emt 0:01:45]} e5 {[%emt 0:04:49]} 25. Kg2 {[%emt 0:01:49]} Qe7 {[%emt 0:03:50] Black is now going downhill.} (25... Rfd8 $14 26. Rxd7 Nxd7) 26. h4 $16 {[%emt 0:01:17] h5 would now be deadly. White is more active.} h5 {[%emt 0:00:42]} (26... Rfd8 $16 27. Rxd7 Nxd7) 27. Qe3 $18 {[%emt 0:03:21]} Rxd1 {[%emt 0:01:01]} 28. Rxd1 {[%emt 0:00:05]} Nd7 {[%emt 0:00:08]} 29. Nc3 {[%emt 0:00:11]} f6 {[%emt 0:00:56]} 30. Qe2 {[%emt 0:02:13]} Nc5 {[%emt 0:01:25]} 31. Ng1 {[%emt 0:00:57]} Qf7 {[%emt 0:01:02]} 32. Qxh5+ {[%emt 0:00:07]} Kg8 {[%emt 0:00:06]} 33. Qg4 {[%emt 0:00:36] Prevents Nf4+. b4 is the strong threat.} Ne7 {[%emt 0:01:21]} 34. Nd5 {[%emt 0:03:37]} Nc6 {[%emt 0:04:51]} (34... Nxd5 $16 {was necessary.} 35. Rxd5 Qb7) 35. Nf3 {[%emt 0:02:22]} Rb8 {[%emt 0:00:49]} 36. b4 {[%emt 0:00:52]} axb4 {[%emt 0:00:09]} 37. axb4 {[%emt 0:00:04]} Ne6 {[%emt 0:00:08]} 38. Rc1 {[%emt 0:00:15][%cal Bd1c1,Bc1c6,Bc6b6,Bb6b7][%mdl 32]} Ncd4 {[%emt 0:01:27]} (38... Ne7 39. h5 Nxd5) 39. Nxd4 {[%emt 0:03:31] White is clearly winning.} exd4 {[%emt 0:00:19]} 40. Rc6 {[%emt 0:00:27][%csl LRb6,LRe6]} Re8 {[%emt 0:00:32]} 41. Rxb6 {[%emt 0:30:55]} Kh8 {[%emt 0:34:32] [#]} (41... d3 $142 42. Rd6 Kh8) 42. Rb7 $3 {[%emt 0:03:08][%mdl 512]} Qf8 {[%emt 0:01:55]} (42... f5 43. Qf3) 43. Qh5+ $2 {[%emt 0:02:26] Weighted Error Value: White=0.06 (flawless) /Black=0.27 (precise) .  Mistake:       	White=1     	Black=5      Inaccurate:     	White=2     	Black=5      OK:         	White=22    	Black=12     Best:        	White=1     	---        Strong:       	---       	Black=1} (43. Nxf6 Qxf6 44. Qh5+ Kg8 45. Qxe8+ Nf8 46. Rd7) 1-0

[Event "WSTCC-65 2024"]
[Site "Krakow"]
[Date "2024.07.05"]
[Round "4.13"]
[White "Falk, Thomas"]
[Black "Sosnowska, Elzbieta"]
[Result "1-0"]
[ECO "D33"]
[WhiteElo "2022"]
[BlackElo "1810"]
[Annotator "NA RC"]
[PlyCount "121"]
[EventDate "2024.07.01"]
[EventType "team-tourn"]
[EventCountry "POL"]
[SourceTitle "playchess.com"]
[Source "ChessBase"]
[SourceQuality "1"]
[TimeControl "40/5400+30:1800+30"]

1. d4 {[%emt 0:00:03]} d5 {[%emt 0:00:10]} 2. c4 {[%emt 0:00:13]} e6 {[%emt 0:00:08]} 3. Nc3 {[%emt 0:00:18]} c5 {[%emt 0:00:17]} 4. cxd5 {[%emt 0:00:46]} exd5 {[%emt 0:00:12]} 5. Nf3 {[%emt 0:00:07]} Nc6 {[%emt 0:00:36]} 6. g3 {[%emt 0:00:09]} c4 {[%emt 0:00:08]} 7. Bg2 {[%emt 0:00:16]} Bb4 {[%emt 0:00:10]} 8. O-O {[%emt 0:00:22]} Nge7 {[%emt 0:01:17]} 9. e4 {[%emt 0:02:14]} O-O {[%emt 0:00:24]} 10. exd5 {[%emt 0:01:15]} Nxd5 {[%emt 0:00:15]} 11. Nxd5 {[%emt 0:00:13]} Qxd5 {[%emt 0:00:13]} 12. Be3 {[%emt 0:00:20]} Bf5 {[%emt 0:14:00]} 13. Ne5 {[%emt 0:00:24]} Qb5 {[%emt 0:00:14]} 14. a4 {[%emt 0:00:37]} Qa6 {[%emt 0:00:02]} 15. Qf3 {[%emt 0:08:07]} Nxe5 {[%emt 0:05:06]} 16. Qxf5 {[%emt 0:00:39]} Ng6 {[%emt 0:02:09]} 17. Rfc1 {[%emt 0:04:58]} Rad8 {[%emt 0:23:26]} 18. Qb5 {[%emt 0:01:57]} Qd6 {[%emt 0:05:20]} 19. Rxc4 {[%emt 0:01:37]} a5 {[%emt 0:00:23]} 20. Qxb7 {[%emt 0:03:20]} Rd7 {[%emt 0:03:21]} 21. Qc6 {[%emt 0:01:51]} Qe7 {[%emt 0:01:12]} 22. h4 {[%emt 0:09:06]} Rd6 {[%emt 0:01:13]} 23. Qf3 {[%emt 0:04:01]} Qd7 {[%emt 0:02:14]} 24. Kh2 {[%emt 0:04:35]} h6 {[%emt 0:10:53]} 25. b3 {[%emt 0:06:28]} Rd8 {[%emt 0:04:11]} 26. Rac1 {[%emt 0:02:09]} Rf6 {[%emt 0:00:31]} 27. Qb7 {[%emt 0:02:30]} Qe6 {[%emt 0:05:13]} 28. Rc8 {[%emt 0:04:38]} Rf8 {[%emt 0:00:58]} 29. h5 {[%emt 0:12:47]} Nh4 {[%emt 0:04:22]} 30. Rxf8+ {[%emt 0:01:36]} Bxf8 {[%emt 0:00:03]} 31. Qe4 {[%emt 0:01:47]} Nxg2 {[%emt 0:01:34]} 32. Qxe6 {[%emt 0:00:31]} fxe6 {[%emt 0:00:23]} 33. Kxg2 {[%emt 0:00:10]} Bb4 {[%emt 0:00:35]} 34. g4 {[%emt 0:02:22]} Rf8 {[%emt 0:01:40]} 35. f4 {[%emt 0:03:06]} Bd6 {[%emt 0:01:26]} 36. Kf3 {[%emt 0:00:39]} Kf7 {[%emt 0:00:34]} 37. Ke4 {[%emt 0:00:56]} Ke7 {[%emt 0:00:56]} 38. Bd2 {[%emt 0:02:41]} Rb8 {[%emt 0:00:38]} 39. Bxa5 {[%emt 0:03:31]} Rxb3 {[%emt 0:00:13]} 40. Bc7 {[%emt 0:03:42]} Ra3 {[%emt 0:02:17]} 41. Bxd6+ {[%emt 0:34:11]} Kxd6 {[%emt 0:30:01]} 42. Rb1 {[%emt 0:00:43]} Rxa4 {[%emt 0:00:27]} 43. Rb7 {[%emt 0:00:15]} Ra1 {[%emt 0:00:52]} 44. Rxg7 {[%emt 0:00:27]} Re1+ {[%emt 0:00:18]} 45. Kf3 {[%emt 0:00:49]} Rf1+ {[%emt 0:00:35]} 46. Ke3 {[%emt 0:00:47]} Re1+ {[%emt 0:00:10]} 47. Kf2 {[%emt 0:00:11]} Rd1 {[%emt 0:00:07]} 48. Rg6 {[%emt 0:01:36]} Rxd4 {[%emt 0:00:25]} 49. f5 {[%emt 0:00:39]} Re4 {[%emt 0:01:31]} 50. Kf3 {[%emt 0:01:00]} Kd5 {[%emt 0:01:53]} 51. Rxh6 {[%emt 0:00:21]} exf5 {[%emt 0:00:18]} 52. gxf5 {[%emt 0:00:22]} Rh4 {[%emt 0:00:09]} 53. Kg3 {[%emt 0:00:47]} Rh1 {[%emt 0:00:03]} 54. Kf4 {[%emt 0:00:17]} Rf1+ {[%emt 0:00:08]} 55. Kg5 {[%emt 0:00:10]} Rg1+ {[%emt 0:00:12]} 56. Kf6 {[%emt 0:00:09]} Ke4 {[%emt 0:00:32]} 57. Rg6 {[%emt 0:00:26]} Ra1 {[%emt 0:01:05]} 58. h6 {[%emt 0:02:20]} Kf4 {[%emt 0:01:11]} 59. h7 {[%emt 0:01:35]} Rh1 {[%emt 0:00:29]} 60. Kg7 {[%emt 0:00:37]} Kxf5 {[%emt 0:00:20]} 61. Rg2 {[%emt 0:00:57]} 1-0

[Event "WSTCC-65 2024"]
[Site "Krakow"]
[Date "2024.07.05"]
[Round "4.14"]
[White "Scrimgour, Alan"]
[Black "Wenner, Tobias"]
[Result "1/2-1/2"]
[ECO "C02"]
[WhiteElo "1979"]
[BlackElo "2090"]
[Annotator "NA RC"]
[PlyCount "37"]
[EventDate "2024.07.01"]
[EventType "team-tourn"]
[EventCountry "POL"]
[SourceTitle "playchess.com"]
[Source "ChessBase"]
[SourceQuality "1"]
[TimeControl "40/5400+30:1800+30"]

1. e4 {[%emt 0:00:03]} c5 {[%emt 0:00:09]} 2. c3 {[%emt 0:00:06]} e6 {[%emt 0:00:17]} 3. d4 {[%emt 0:00:19]} d5 {[%emt 0:00:29]} 4. e5 {[%emt 0:00:07]} Nc6 {[%emt 0:00:58]} 5. Nf3 {[%emt 0:00:07]} Qb6 {[%emt 0:00:48]} 6. a3 {[%emt 0:02:28]} Bd7 {[%emt 0:09:04]} 7. b4 {[%emt 0:03:00]} cxd4 {[%emt 0:03:45]} 8. cxd4 {[%emt 0:00:06]} Rc8 {[%emt 0:00:28]} 9. Be2 {[%emt 0:09:44]} Nh6 {[%emt 0:03:22]} 10. Bxh6 {[%emt 0:05:11]} gxh6 {[%emt 0:00:02]} 11. O-O {[%emt 0:01:09]} Ne7 {[%emt 0:02:16]} 12. Qd2 {[%emt 0:10:31]} Nf5 {[%emt 0:01:58]} 13. Nc3 {[%emt 0:08:29]} h5 {[%emt 0:05:38]} 14. Nd1 {[%emt 0:07:33]} Bh6 {[%emt 0:01:26]} 15. Ne3 {[%emt 0:00:53]} Ba4 {[%emt 0:13:48]} 16. Rfc1 {[%emt 0:03:20]} O-O {[%emt 0:01:29]} 17. Rc3 {[%emt 0:06:50]} Bb5 {[%emt 0:06:59]} 18. Rc5 {[%emt 0:12:22]} Bxe2 {[%emt 0:04:34]} 19. Qxe2 {[%emt 0:00:32]} 1/2-1/2

[Event "WSTCC-65 2024"]
[Site "Krakow"]
[Date "2024.07.05"]
[Round "4.14"]
[White "Kusina, Jan"]
[Black "Raupp, Thomas"]
[Result "0-1"]
[ECO "D26"]
[WhiteElo "1969"]
[BlackElo "2237"]
[Annotator "TA"]
[PlyCount "58"]
[EventDate "2024.07.01"]
[EventType "team-tourn"]
[EventCountry "POL"]
[SourceTitle "playchess.com"]
[Source "ChessBase"]
[SourceQuality "1"]
[TimeControl "40/5400+30:1800+30"]

{[%evp 22,58,0,0,1,0,0,0,0,0,0,-16,-8,-14,-19,-9,-19,-14,-11,-18,0,0,0,-35,-34,-74,-73,-102,-106,-102,-107,-495,-459,-435,-489,-542,-534,-551,-522]} 1. d4 {[%emt 0:02:17]} d5 {[%emt 0:00:15]} 2. Nf3 {[%emt 0:00:20]} Nf6 {[%emt 0:00:29]} 3. c4 {[%emt 0:00:33]} dxc4 {[%emt 0:00:41]} 4. e3 {[%emt 0:00:13]} e6 {[%emt 0:00:20]} 5. Bxc4 {[%emt 0:00:20]} c5 {[%emt 0:00:06]} 6. Nc3 {[%emt 0:00:25]} a6 {[%emt 0:00:48]} 7. a4 {[%emt 0:01:39]} Nc6 {[%emt 0:04:28]} 8. O-O {[%emt 0:01:27]} Be7 {[%emt 0:05:27]} 9. Qe2 {[%emt 0:09:33]} cxd4 {[%emt 0:01:34]} 10. Rd1 {[%emt 0:00:40]} O-O {[%emt 0:01:22]} 11. exd4 {[%emt 0:00:38]} Nb4 {[%emt 0:00:40]} 12. Bg5 {[%emt 0:03:33]} h6 {[%emt 0:04:16]} 13. Bh4 {[%emt 0:01:27]} Bd7 {[%emt 0:02:09]} 14. Ne5 {[%emt 0:04:42]} Bc6 {[%emt 0:01:07] Die Stellung ist ausgeglichen.} 15. Nxc6 {[%emt 0:07:42]} bxc6 {[%emt 0:00:12]} 16. Rac1 {[%emt 0:02:43]} a5 {[%emt 0:01:05]} 17. Ne4 {[%emt 0:03:21]} Nxe4 {[%emt 0:21:12] Hervorragende Reitkunst.} 18. Bxe7 {[%emt 0:00:36]} Qxe7 {[%emt 0:01:39]} 19. Qxe4 {[%emt 0:00:09]} Rfd8 {[%emt 0:01:08]} 20. g3 {[%emt 0:08:05]} Ra7 {[%emt 0:05:25][%cal Ba8a7,Ba7d7,Bd7d4,Bd4b4,Bb4b2][%mdl 32]} 21. Kg2 {[%emt 0:01:29]} Rd6 {[%emt 0:25:56]} 22. Qe5 {[%emt 0:04:35]} Qd8 {[%emt 0:00:22]} 23. Bb3 {[%emt 0:06:49]} Rad7 {[%emt 0:02:05][%cal Rd6d4]} 24. Rc5 {[%emt 0:03:01]} Rxd4 {[%emt 0:00:07]} 25. Rxd4 {[%emt 0:00:26]} Rxd4 {[%emt 0:00:11]} 26. Rxa5 $2 {[%emt 0:03:49][%mdl 8192] [#] Ein Fehler, der zur Niederlage führt.} (26. Bc4 $17 {ist zäher.}) 26... Nd3 $1 $19 {[%emt 0:02:26][%csl LRb2,LRe5] Schwarz steht klar auf Gewinn.} 27. Qe3 {[%emt 0:00:46]} Rb4 {[%emt 0:01:25]} 28. Bc2 {[%emt 0:06:38]} Qxa5 {[%emt 0:00:37]} 29. Qxd3 {[%emt 0:00:09]} Rxb2 {[%emt 0:05:19] Gewichteter Fehlerwert: Weiß=0.46/Schwarz=0.02 (makellos) .  Verlustzug:     	Weiß=1     	---        Ungenau:       	Weiß=3     	---        OK:         	Weiß=7     	Schwarz=9     Bester:       	---       	Schwarz=2} 0-1

[Event "WSTCC-65 2024"]
[Site "Krakow"]
[Date "2024.07.05"]
[Round "4.14"]
[White "Marks, Zofia"]
[Black "Lomer, Edmund"]
[Result "1/2-1/2"]
[ECO "A28"]
[WhiteElo "1906"]
[BlackElo "1943"]
[Annotator "NA RC"]
[PlyCount "61"]
[EventDate "2024.07.01"]
[EventType "team-tourn"]
[EventCountry "POL"]
[SourceTitle "playchess.com"]
[Source "ChessBase"]
[SourceQuality "1"]
[TimeControl "40/5400+30:1800+30"]

1. c4 {[%emt 0:00:08]} e5 {[%emt 0:00:15]} 2. Nc3 {[%emt 0:00:18]} Nc6 {[%emt 0:00:20]} 3. Nf3 {[%emt 0:01:27]} Nf6 {[%emt 0:00:31]} 4. d4 {[%emt 0:01:06]} exd4 {[%emt 0:01:41]} 5. Nxd4 {[%emt 0:00:13]} Ne5 {[%emt 0:01:15]} 6. e3 {[%emt 0:07:12]} Bb4 {[%emt 0:02:11]} 7. Qc2 {[%emt 0:02:42]} O-O {[%emt 0:01:16]} 8. Be2 {[%emt 0:00:54]} b6 {[%emt 0:01:52]} 9. Bd2 {[%emt 0:04:23]} Bb7 {[%emt 0:01:37]} 10. f3 {[%emt 0:08:27]} a5 {[%emt 0:05:50]} 11. a3 {[%emt 0:02:26]} Bc5 {[%emt 0:03:03]} 12. Na4 {[%emt 0:06:18]} Bxd4 {[%emt 0:02:16]} 13. exd4 {[%emt 0:01:05]} Nc6 {[%emt 0:05:35]} 14. Bc3 {[%emt 0:03:24]} Re8 {[%emt 0:01:46]} 15. O-O-O {[%emt 0:02:58]} d5 {[%emt 0:01:51]} 16. Rhe1 {[%emt 0:03:45]} Qd6 {[%emt 0:01:33]} 17. Kb1 {[%emt 0:04:08]} Na7 {[%emt 0:01:51]} 18. c5 {[%emt 0:05:06]} Qc6 {[%emt 0:03:14]} 19. b3 {[%emt 0:08:39]} Rad8 {[%emt 0:10:31]} 20. Bd3 {[%emt 0:02:38]} Rxe1 {[%emt 0:07:20]} 21. Bxe1 {[%emt 0:01:15]} Re8 {[%emt 0:05:51]} 22. cxb6 {[%emt 0:02:53]} Qxc2+ {[%emt 0:01:56]} 23. Kxc2 {[%emt 0:01:32]} cxb6 {[%emt 0:00:17]} 24. Nxb6 {[%emt 0:01:39]} Nc6 {[%emt 0:01:56]} 25. Bb5 {[%emt 0:01:03]} Nxd4+ {[%emt 0:01:17]} 26. Rxd4 {[%emt 0:01:51]} Rxe1 {[%emt 0:00:14]} 27. b4 {[%emt 0:06:08]} axb4 {[%emt 0:01:26]} 28. axb4 {[%emt 0:00:10]} Kf8 {[%emt 0:01:55]} 29. Na4 {[%emt 0:05:20]} Ke7 {[%emt 0:02:51]} 30. Nc5 {[%emt 0:00:44]} Bc8 {[%emt 0:01:27]} 31. Rd2 {[%emt 0:02:29]} 1/2-1/2

[Event "WSTCC-65 2024"]
[Site "Krakow"]
[Date "2024.07.05"]
[Round "4.15"]
[White "Kiefer, Gerhard"]
[Black "Irlik, Andrzej"]
[Result "1-0"]
[ECO "C50"]
[WhiteElo "2210"]
[BlackElo "1983"]
[Annotator "TA"]
[PlyCount "59"]
[EventDate "2024.07.01"]
[EventType "team-tourn"]
[EventCountry "POL"]
[SourceTitle "playchess.com"]
[Source "ChessBase"]
[SourceQuality "1"]
[TimeControl "40/5400+30:1800+30"]

{[%evp 17,58,30,39,47,41,34,58,47,80,74,87,83,70,74,101,43,52,29,28,36,114,107,118,114,114,32,25,20,33,15,21,41,340,336,329,322,890,459,238,72,29992,29993,29999]} 1. e4 {[%emt 0:00:03]} e5 {[%emt 0:00:41]} 2. Nf3 {[%emt 0:00:13]} Nc6 {[%emt 0:00:44]} 3. d4 {[%emt 0:01:15]} exd4 {[%emt 0:01:33]} 4. Bc4 {[%emt 0:00:07]} Be7 {[%emt 0:04:57]} 5. O-O {[%emt 0:01:40]} d6 {[%emt 0:03:34]} 6. Nxd4 {[%emt 0:00:52]} Ne5 {[%emt 0:08:35]} 7. Bb3 {[%emt 0:03:46]} Nf6 {[%emt 0:07:51]} 8. f4 {[%emt 0:02:36]} Ng6 {[%emt 0:10:52]} 9. Nc3 {[%emt 0:00:20]} O-O {[%emt 0:05:12]} 10. a4 {[%emt 0:09:12]} c6 {[%emt 0:03:04]} 11. Kh1 {[%emt 0:02:04]} Qc7 {[%emt 0:04:35]} 12. Nf3 {[%emt 0:04:59] White is slightly better.} h6 {[%emt 0:10:25]} 13. f5 {[%emt 0:03:52]} Ne5 {[%emt 0:02:06]} 14. Nxe5 {[%emt 0:00:08]} dxe5 {[%emt 0:00:03]} 15. Qf3 {[%emt 0:00:43]} Nh7 {[%emt 0:09:33]} 16. Be3 {[%emt 0:11:58] Black is weak on the light squares} (16. Qh5 $16) 16... b6 $1 $14 {[%emt 0:00:32]} 17. Bc4 {[%emt 0:02:12] Inhibits Ba6.} Bb7 {[%emt 0:02:19]} 18. Qg4 {[%emt 0:03:51]} Bg5 {[%emt 0:05:01]} (18... Nf6 $14 19. Qg3 Kh8) 19. Bxg5 $16 {[%emt 0:01:09]} hxg5 {[%emt 0:00:25]} 20. Rf3 $1 $36 {[%emt 0:00:32][%mdl 2048] Black must now prevent Rh3. White is on the roll. White has more active pieces.} Rad8 {[%emt 0:00:52]} 21. Raf1 {[%emt 0:09:51]} ({White should try} 21. h4 $16 Rd4 22. hxg5 Rxc4 23. Rh3 Nxg5 24. Qxg5) 21... Rd6 $1 $14 {[%emt 0:02:59]} 22. Rh3 {[%emt 0:02:59]} Qe7 {[%emt 0:01:58]} 23. Ne2 {[%emt 0:01:46]} Rfd8 {[%emt 0:03:16]} 24. Ng3 {[%emt 0:00:29][%cal Of5f6] Hoping for f6!} Rh6 {[%emt 0:04:10][%mdl 8192]} (24... Bc8 $14) 25. Rxh6 $18 {[%emt 0:00:41]} gxh6 {[%emt 0:00:02] [#]} 26. f6 $1 {[%emt 0:01:38]} Qc5 {[%emt 0:05:19]} (26... Qf8 27. Qf5 Kh8 28. Qxe5 g4) 27. Bxf7+ {[%emt 0:04:54]} Kxf7 {[%emt 0:01:00] [#]} 28. Qh5+ $2 {[%emt 0:00:07]} (28. Nf5 $1 $18 {Qh5+ would now be deadly.} Qc4 29. Ne3 Qxf1+ (29... Qxa4 $2 {too greedy.} 30. Qf5 $18) 30. Nxf1 Nxf6 31. Qf3) 28... Kg8 $2 {[%emt 0:00:38][%mdl 8192]} (28... Ke6 $16) 29. Qg6+ {[%emt 0:00:13]} (29. Qxh6 Qf8 30. f7+ Kh8 $14) 29... Kh8 {[%emt 0:00:26]} 30. Qg7# {Weighted Error Value: White=0.42/Black=0.65.  Loses game:     	---       	Black=2      Mistake:       	White=2     	Black=2      Inaccurate:     	White=1     	Black=2      OK:         	White=7     	Black=4      Best:        	White=2     	Black=1      Strong:       	White=2     	Black=2} 1-0

[Event "WSTCC-65 2024"]
[Site "Krakow"]
[Date "2024.07.05"]
[Round "4.15"]
[White "Dekan, Hans"]
[Black "Marks, Ian A"]
[Result "1-0"]
[ECO "B07"]
[WhiteElo "2083"]
[BlackElo "1932"]
[Annotator "NA RC"]
[PlyCount "67"]
[EventDate "2024.07.01"]
[EventType "team-tourn"]
[EventCountry "POL"]
[SourceTitle "playchess.com"]
[Source "ChessBase"]
[SourceQuality "1"]
[TimeControl "40/5400+30:1800+30"]

1. e4 {[%emt 0:00:05]} d6 {[%emt 0:00:10]} 2. d4 {[%emt 0:00:28]} Nf6 {[%emt 0:00:07]} 3. Nc3 {[%emt 0:00:19]} c6 {[%emt 0:00:19]} 4. Nf3 {[%emt 0:01:04]} Bg4 {[%emt 0:00:34]} 5. Bd3 {[%emt 0:06:45]} e6 {[%emt 0:01:43]} 6. O-O {[%emt 0:05:33]} d5 {[%emt 0:02:17]} 7. e5 {[%emt 0:05:14]} Nfd7 {[%emt 0:00:26]} 8. Ne2 {[%emt 0:00:16]} Bxf3 {[%emt 0:05:05]} 9. gxf3 {[%emt 0:00:04]} c5 {[%emt 0:00:40]} 10. c3 {[%emt 0:00:09]} Nc6 {[%emt 0:00:34]} 11. Be3 {[%emt 0:01:54]} c4 {[%emt 0:10:23]} 12. Bc2 {[%emt 0:00:14]} Ne7 {[%emt 0:04:04]} 13. b3 {[%emt 0:04:39]} Nb6 {[%emt 0:09:16]} 14. Bg5 {[%emt 0:10:15]} Qc7 {[%emt 0:06:49]} 15. Bxe7 {[%emt 0:02:41]} Bxe7 {[%emt 0:00:49]} 16. f4 {[%emt 0:01:14]} g6 {[%emt 0:01:51]} 17. b4 {[%emt 0:03:45]} O-O-O {[%emt 0:06:50]} 18. a4 {[%emt 0:00:34]} Rdg8 {[%emt 0:02:38]} 19. Kh1 {[%emt 0:07:30]} Qd8 {[%emt 0:05:28]} 20. Qd2 {[%emt 0:04:58]} f5 {[%emt 0:03:08]} 21. exf6 {[%emt 0:01:33]} Bxf6 {[%emt 0:00:13]} 22. Qe3 {[%emt 0:01:35]} Qd6 {[%emt 0:01:10]} 23. Rae1 {[%emt 0:01:57]} g5 {[%emt 0:03:27]} 24. f5 {[%emt 0:03:23]} e5 {[%emt 0:02:01]} 25. dxe5 {[%emt 0:08:06]} Bxe5 {[%emt 0:01:51]} 26. Ng3 {[%emt 0:05:01]} Bf4 {[%emt 0:04:45]} 27. Qd4 {[%emt 0:04:17]} Re8 {[%emt 0:02:00]} 28. Re6 {[%emt 0:04:14]} Qd8 {[%emt 0:05:46]} 29. a5 {[%emt 0:03:15]} Na8 {[%emt 0:04:38]} 30. Qxa7 {[%emt 0:02:59]} Kc7 {[%emt 0:02:17]} 31. a6 {[%emt 0:01:50]} Qc8 {[%emt 0:04:01]} 32. Qc5+ {[%emt 0:00:50]} Kd8 {[%emt 0:00:42]} 33. Qxd5+ {[%emt 0:00:51]} Kc7 {[%emt 0:01:51]} 34. Qc5+ {[%emt 0:00:16]} 1-0